lending/lending_fUSD_20251116
["ID","MTS","AMOUNT","RATE_DAILY","PERIOD"]
[394139679,1763317860918,-150.0,0.00035,2]
[394139680,1763317860927,-1820.13902755,0.00035,2]
[394139681,1763317860937,-150.0,0.00035,2]
[394139682,1763317860946,-11966.17496856,0.00035,2]
[394139683,1763317860956,-2141.31509155,0.00035,30]
[394139684,1763317860966,-41695.48,0.00035,120]
[394139685,1763317860975,-1000.0,0.00035,90]
[394139686,1763317860984,-479.06402154,0.00035,120]
[394139687,1763317860995,-479.06402154,0.00035,30]
[394139688,1763317861005,-150.0,0.00035,2]
[394139689,1763317861015,-249.86886028,0.00035,2]
[394139690,1763317861024,-169.28,0.00035,2]
[394139691,1763317861034,-184.66,0.00035,31]
[394139692,1763317861043,-834835.55215646,0.00035,2]
[394139693,1763317861055,-4328.81186658,0.00035,2]
[394139694,1763317861065,-478.515,0.00035,2]
[394139695,1763317861080,-2757.60548492,0.00035,2]
[394139696,1763317861091,-4100.0,0.00035,2]
[394139697,1763317861102,-698.99829,0.00035,2]
[394139698,1763317861113,-8954.27379417,0.00035,2]
[394139699,1763317861128,-1342.739882,0.00026,7]
[394139700,1763317861138,-33121.24086286,0.00035,2]
[394139701,1763317861149,-10262.0,0.00035,2]
[394139702,1763317861160,-616.41039104,0.00035,2]
[394139703,1763317861171,-38623.38354098,0.00035,2]
[394140401,1763318057015,150.0,0.00024148,120]
[394140863,1763319031948,-203.447452,0.00016291,2]
[394140864,1763319031959,-767.14041906,0.00016448,2]
[394140865,1763319032000,-432.85958094,0.00016448,2]
[394140866,1763319032011,-300.0,0.00016448,2]
[394140867,1763319032020,-852.24540673,0.00016449,2]
[394140868,1763319032032,-3960.31189362,0.00016449,2]
[394140869,1763319032044,-494.91920915,0.00016449,2]
[394140870,1763319032160,-700.0,0.00016449,2]
[394140871,1763319032173,-486.220264,0.00016449,2]
[394140872,1763319032216,-10528.79186748,0.00016449,2]
[394140873,1763319032228,-1871.48590756,0.00016449,2]
[394140874,1763319032242,-1016.66647208,0.00016449,2]
[394140880,1763319032370,-24597.98327938,0.00016449,2]
[394140882,1763319032380,-160.0,0.00016471,2]
[394140884,1763319032390,-500.0,0.00016549,2]
[394140886,1763319032399,-500.0,0.00016549,2]
[394140888,1763319032409,-500.0,0.00016549,2]
[394140890,1763319032419,-500.0,0.00016549,2]
[394140892,1763319032429,-500.0,0.00016549,2]
[394140894,1763319032438,-500.0,0.00016549,2]
[394140896,1763319032448,-500.0,0.00016549,2]
[394140898,1763319032457,-500.0,0.00016549,2]
[394140901,1763319032470,-500.0,0.00016549,2]
[394140903,1763319032480,-500.0,0.00016549,2]
[394140905,1763319032489,-500.0,0.00016549,2]
[394140907,1763319032499,-500.0,0.00016549,2]
[394140909,1763319032508,-500.0,0.00016549,2]
[394140911,1763319032517,-500.0,0.00016549,2]
[394140914,1763319032527,-500.0,0.00016549,2]
[394140916,1763319032537,-500.0,0.00016549,2]
[394140919,1763319032546,-497.12361815,0.00016549,2]
[394140921,1763319032556,-500.0,0.00016549,2]
[394140924,1763319032567,-500.0,0.00016549,2]
[394140926,1763319032581,-500.0,0.00016549,2]
[394140928,1763319032591,-500.0,0.00016549,2]
[394140930,1763319032601,-192.52617624,0.00016549,2]
[394140932,1763319032611,-500.0,0.00016549,2]
[394140934,1763319032620,-500.0,0.00016549,2]
[394140936,1763319032630,-500.0,0.00016549,2]
[394140938,1763319032639,-500.0,0.00016549,2]
[394140940,1763319032649,-433.04586038,0.00016549,2]
[394140942,1763319032658,-500.0,0.00016549,2]
[394140944,1763319032668,-500.0,0.00016549,2]
[394140946,1763319032678,-194.5394073,0.00016549,2]
[394140948,1763319032687,-500.0,0.00016549,2]
[394140950,1763319032697,-508.6753912,0.00016549,2]
[394140952,1763319032706,-500.0,0.00016549,2]
[394140954,1763319032719,-500.0,0.00016549,2]
[394140956,1763319032728,-500.0,0.00016549,2]
[394140958,1763319032738,-500.0,0.00016549,2]
[394140961,1763319032748,-500.0,0.00016549,2]
[394140963,1763319032759,-82.27425212,0.00016549,2]
[394141109,1763319038047,-417.72574788,0.00016549,2]
[394141110,1763319038057,-500.0,0.00016573,2]
[394141111,1763319038068,-499.52855895,0.00016573,2]
[394141112,1763319038078,-505.39261707,0.00016573,2]
[394141113,1763319038088,-500.0,0.00016871,2]
[394141114,1763319038098,-1000.0,0.0001712,2]
[394141115,1763319038108,-1000.0,0.0001712,2]
[394141116,1763319038118,-284.116,0.0001712,2]
[394141117,1763319038128,-1000.0,0.0001712,2]
[394141118,1763319038138,-1000.0,0.0001712,2]
[394141119,1763319038149,-1000.0,0.0001712,2]
[394141120,1763319038159,-1000.0,0.0001712,2]
[394141121,1763319038169,-1000.0,0.0001712,2]
[394141122,1763319038179,-1000.0,0.0001712,2]
[394141123,1763319038188,-500.0,0.00017713,2]
[394141124,1763319038198,-500.0,0.0001784,2]
[394141126,1763319038208,-500.0,0.0001784,2]
[394141127,1763319038217,-500.0,0.0001784,2]
[394141128,1763319038231,-500.0,0.0001784,2]
[394141129,1763319038243,-500.0,0.0001784,2]
[394141130,1763319038254,-434.7518673,0.0001784,2]
[394141132,1763319038264,-5867.04,0.0001792,2]
[394141134,1763319038275,-150.99,0.0001792,2]
[394141136,1763319038285,-250.0,0.0001792,2]
[394141138,1763319038295,-500.0,0.00017939,2]
[394141140,1763319038306,-500.0,0.00017939,2]
[394141142,1763319038316,-500.0,0.00017939,2]
[394141144,1763319038325,-500.0,0.00017939,2]
[394141146,1763319038345,-500.0,0.00017999,2]
[394141148,1763319038359,-500.0,0.00017999,2]
[394141150,1763319038369,-500.0,0.00017999,2]
[394141152,1763319038380,-500.0,0.00017999,2]
[394141154,1763319038390,-254.0,0.00018065,2]
[394141156,1763319038401,-216.5,0.00018082,2]
[394141158,1763319038410,-216.5,0.00018356,2]
[394141160,1763319038420,-216.5,0.0001863,2]
[394141161,1763319038430,-150.0,0.00018874,2]
[394141162,1763319038440,-216.5,0.00018904,2]
[394141163,1763319038450,-216.52784937,0.00019178,2]
[394141164,1763319038459,-468.68,0.00020348,2]
[394141165,1763319038471,-1000.0,0.00020568,2]
[394141166,1763319038482,-200.0,0.00020577,2]
[394141167,1763319038492,-2111.99,0.00020802,2]
[394141168,1763319038503,-6324.66,0.0002137,2]
[394141169,1763319038513,-5563.5,0.00021407,2]
[394141170,1763319038524,-215.39383382,0.0002146,2]
[394141171,1763319038534,-5000.0,0.00021918,2]
[394141173,1763319038544,-834.79,0.00022,14]
[394141175,1763319038555,-479.06402154,0.00022083,2]
[394141177,1763319038566,-151.0,0.00022721,2]
[394141178,1763319038576,-156.587,0.00022721,2]
[394141180,1763319038585,-311.84574709,0.00022721,2]
[394141183,1763319038595,-2000.0,0.00023,2]
[394141185,1763319038605,-1325.9,0.00023142,2]
[394141187,1763319038616,-232.18,0.00023491,2]
[394141188,1763319038625,-500.0,0.00024083,2]
[394141191,1763319038637,-500.0,0.00024083,2]
[394141193,1763319038647,-500.0,0.00024083,2]
[394141195,1763319038657,-500.0,0.00024083,2]
[394141197,1763319038666,-150.0,0.00024148,2]
[394141199,1763319038676,-502.51981297,0.00024631,2]
[394141201,1763319038686,-1000.0,0.00024631,2]
[394141203,1763319038696,-1000.0,0.00024631,2]
[394141205,1763319038705,-502.62177573,0.00024631,2]
[394141207,1763319038715,-2393.381,0.000247,2]
[394141209,1763319038728,-500.0,0.00024773,2]
[394141211,1763319038737,-500.0,0.00024773,2]
[394141213,1763319038747,-500.0,0.00024773,2]
[394141215,1763319038756,-470.24249009,0.00024773,2]
[394141216,1763319038766,-500.0,0.00024773,2]
[394141219,1763319038776,-505.52335219,0.00024773,2]
[394141220,1763319038786,-503.10398697,0.00024773,2]
[394141223,1763319038796,-209671.850287,0.000248,3]
[394141225,1763319038806,-204518.0,0.000249,2]
[394141227,1763319038817,-14996.93274096,0.00024936,2]
[394141229,1763319038826,-23345.75678409,0.00024936,2]
[394141231,1763319038836,-744.4614429,0.00025036,2]
[394141232,1763319038846,-608.0,0.00025136,2]
[394141233,1763319038856,-1348.318,0.00025136,2]
[394141234,1763319038865,-575.0,0.00025136,2]
[394141235,1763319038875,-3430.0,0.00025136,2]
[394141236,1763319038885,-1599.0,0.00025136,2]
[394141237,1763319038895,-821.0,0.00025136,2]
[394141238,1763319038905,-814.0,0.00025136,2]
[394141239,1763319038915,-1275.0,0.00025136,2]
[394141240,1763319038925,-560.0,0.00025136,2]
[394141241,1763319038934,-6488.0,0.00025136,2]
[394141242,1763319038945,-505.547,0.00025136,2]
[394141243,1763319038955,-1500.0,0.00025179,2]
[394141244,1763319038965,-334.38895643,0.00025179,2]
[394141245,1763319038978,-163.62,0.0002519,2]
[394141246,1763319038987,-1000.0,0.00025321,2]
[394141247,1763319038998,-1000.0,0.00025321,2]
[394141248,1763319039008,-798.21916561,0.00025321,2]
[394141249,1763319039019,-226.36441641,0.00025321,2]
[394141250,1763319039029,-5518.0,0.000255,3]
[394141251,1763319039039,-500.0,0.00025573,2]
[394141252,1763319039049,-500.0,0.00025573,2]
[394141253,1763319039058,-503.8999643,0.00025573,2]
[394141254,1763319039068,-501.67772144,0.00025573,2]
[394141255,1763319039078,-500.0,0.00025573,2]
[394141256,1763319039087,-500.0,0.00025573,2]
[394141257,1763319039096,-500.0,0.00025727,2]
[394141258,1763319039105,-300.0,0.00025844,2]
[394141259,1763319039115,-1500.0,0.00025868,2]
[394141260,1763319039125,-159.65016984,0.00025868,2]
[394141261,1763319039136,-104835.925143,0.0002589,3]
[394141262,1763319039146,-5518.0,0.00026,5]
[394141263,1763319039156,-831.59835599,0.00026121,2]
[394141264,1763319039166,-500.0,0.00026121,2]
[394141265,1763319039176,-297.01930622,0.00026121,2]
[394141266,1763319039186,-1000.0,0.00026121,2]
[394141267,1763319039196,-504.62385187,0.00026173,2]
[394141268,1763319039206,-9825.0,0.000262,2]
[394141269,1763319039215,-718.93026,0.00026316,2]
[394141270,1763319039227,-510.16852584,0.00026416,2]
[394141271,1763319039240,-164.00583255,0.00026473,2]
[394141272,1763319039250,-503.66483378,0.00026507,2]
[394141273,1763319039260,-14996.93274094,0.00026576,2]
[394141274,1763319039274,-23345.756784,0.00026576,2]
[394141275,1763319039292,-34945.3083811,0.00026631,3]
[394141276,1763319039302,-500.0,0.00026668,2]
[394141277,1763319039315,-2000.0,0.000267,2]
[394141278,1763319039325,-150.0,0.00026869,2]
[394141279,1763319039336,-300.0,0.00027214,2]
[394141280,1763319039347,-744.46144285,0.00027365,2]
[394141281,1763319039357,-150.0,0.00027397,7]
[394141282,1763319039367,-300.0,0.00027397,2]
[394141283,1763319039378,-776.33,0.000274,7]
[394141284,1763319039389,-250.0,0.00027417,5]
[394141285,1763319039399,-34945.3083811,0.0002748,3]
[394141286,1763319039409,-350.0,0.00027965,5]
[394141287,1763319039419,-34945.3083811,0.0002808,3]
[394141288,1763319039429,-608.0,0.00028136,2]
[394141289,1763319039438,-1318.0,0.00028136,2]
[394141290,1763319039448,-575.0,0.00028136,2]
[394141291,1763319039458,-3430.0,0.00028136,2]
[394141292,1763319039468,-1599.0,0.00028136,2]
[394141293,1763319039480,-821.0,0.00028136,2]
[394141294,1763319039490,-793.0,0.00028136,2]
[394141295,1763319039500,-1275.0,0.00028136,2]
[394141296,1763319039510,-6488.0,0.00028136,2]
[394141297,1763319039524,-14996.93274094,0.00028217,2]
[394141298,1763319039534,-23345.756784,0.00028217,2]
[394141299,1763319039544,-168.1,0.000285,7]
[394141300,1763319039554,-150.0,0.00028569,56]
[394141301,1763319039564,-718.93025998,0.0002882,2]
[394141302,1763319039574,-2111.99,0.00029123,2]
[394141303,1763319039585,-34945.3083811,0.00029174,3]
[394141304,1763319039595,-150.0,0.00029258,10]
[394141305,1763319039605,-2504.37,0.000294,14]
[394141306,1763319039615,-150.0,0.00029481,2]
[394141307,1763319039625,-992.691,0.000295,23]
[394141308,1763319039639,-744.46144285,0.00029694,2]
[394141309,1763319039648,-776.33,0.000297,7]
[394141310,1763319039658,-150.0,0.00029723,110]
[394141311,1763319039668,-14996.93274094,0.00029857,2]
[394141312,1763319039677,-23345.756784,0.00029857,2]
[394141313,1763319039687,-500.0,0.00029896,11]
[394141314,1763319039697,-500.0,0.00029896,11]
[394141315,1763319039715,-500.0,0.00029896,11]
[394141316,1763319039729,-500.0,0.00029896,11]
[394141317,1763319039738,-500.0,0.00029896,11]
[394141318,1763319039748,-500.0,0.00029896,11]
[394141319,1763319039759,-500.0,0.00029896,11]
[394141320,1763319039769,-500.0,0.00029896,11]
[394141321,1763319039779,-150.0,0.00030246,44]
[394141322,1763319039789,-228.58575698,0.00030288,15]
[394141323,1763319039798,-2000.0,0.000304,2]
[394141324,1763319039808,-150.0,0.00030952,3]
[394141325,1763319039819,-608.0,0.00031136,2]
[394141326,1763319039828,-1318.0,0.00031136,2]
[394141328,1763319039838,-575.0,0.00031136,2]
[394141330,1763319039848,-3430.0,0.00031136,2]
[394141333,1763319039858,-1599.0,0.00031136,2]
[394141335,1763319039869,-821.0,0.00031136,2]
[394141336,1763319039881,-793.0,0.00031136,2]
[394141337,1763319039891,-1275.0,0.00031136,2]
[394141338,1763319039902,-6488.0,0.00031136,2]
[394141339,1763319039913,-718.93025998,0.00031324,2]
[394141340,1763319039924,-150.0,0.00031364,7]
[394141341,1763319039934,-14996.93274094,0.00031498,2]
[394141342,1763319039944,-34945.3083811,0.00031663,3]
[394141343,1763319039955,-151.0,0.00031673,31]
[394141344,1763319039965,-151.0,0.00031673,31]
[394141345,1763319039977,-151.0,0.00031673,31]
[394141346,1763319039987,-151.0,0.00031673,31]
[394141347,1763319039997,-151.0,0.00031673,31]
[394141348,1763319040006,-180.69634,0.00031673,31]
[394141349,1763319040017,-235.011081,0.00031673,31]
[394141350,1763319040027,-151.0,0.00031673,31]
[394141351,1763319040037,-235.011081,0.00031673,31]
[394141352,1763319040048,-151.0,0.00031673,31]
[394141353,1763319040058,-151.0,0.00031673,31]
[394141354,1763319040069,-235.011081,0.00031673,31]
[394141355,1763319040079,-151.0,0.00031673,31]
[394141356,1763319040088,-166.199414,0.00031673,31]
[394141357,1763319040099,-151.0,0.00031673,31]
[394141358,1763319040108,-235.011081,0.00031673,31]
[394141359,1763319040118,-225.770558,0.00031673,31]
[394141360,1763319040127,-151.0,0.00031673,31]
[394141361,1763319040137,-151.0,0.00031673,31]
[394141362,1763319040147,-159.659107,0.00031673,31]
[394141363,1763319040156,-151.0,0.00031673,31]
[394141364,1763319040166,-151.0,0.00031673,31]
[394141365,1763319040175,-216.330313,0.00031673,30]
[394141366,1763319040184,-216.330313,0.00031673,30]
[394141367,1763319040194,-216.330313,0.00031673,30]
[394141368,1763319040203,-216.330313,0.00031673,30]
[394141369,1763319040213,-151.0,0.00031673,31]
[394141370,1763319040224,-177.820604,0.00031673,31]
[394141371,1763319040236,-177.820604,0.00031673,31]
[394141372,1763319040246,-177.820604,0.00031673,31]
[394141373,1763319040256,-153.633799,0.00031673,31]
[394141374,1763319040267,-177.820604,0.00031673,31]
[394141375,1763319040276,-151.0,0.00031673,31]
[394141376,1763319040286,-151.0,0.00031673,31]
[394141377,1763319040296,-151.0,0.00031673,31]
[394141378,1763319040307,-152.896676,0.00031673,31]
[394141379,1763319040318,-151.0,0.00031673,31]
[394141380,1763319040327,-257.761001,0.00031673,31]
[394141381,1763319040337,-168.0,0.00031676,2]
[394141382,1763319040347,-168.0,0.00031682,2]
[394141383,1763319040356,-168.0,0.00031759,2]
[394141384,1763319040366,-166.36857467,0.00032,120]
[394141385,1763319040376,-168.0,0.00032,2]
[394141386,1763319040386,-744.46144285,0.00032023,2]
[394141387,1763319040396,-150.0,0.00032098,4]
[394141388,1763319040406,-232.18,0.00032117,2]
[394141389,1763319040415,-168.0,0.00032696,2]
[394141390,1763319040424,-776.33,0.000327,30]
[394141391,1763319040434,-168.0,0.000327,2]
[394141392,1763319040443,-168.0,0.00032703,2]
[394141393,1763319040452,-500.0,0.00032877,7]
[394141394,1763319040462,-500.0,0.00032877,7]
[394141398,1763319040644,-500.0,0.00032877,7]
[394141399,1763319040654,-500.0,0.00032877,7]
[394141400,1763319040663,-500.0,0.00032877,7]
[394141401,1763319040673,-277.08105166,0.00032877,7]
[394141402,1763319040682,-500.0,0.00032877,7]
[394141403,1763319040691,-500.0,0.00032877,7]
[394141404,1763319040701,-500.0,0.00032877,7]
[394141405,1763319040710,-500.0,0.00032954,2]
[394141406,1763319040719,-150.0,0.00032987,60]
[394141407,1763319040731,-500.0,0.00032987,2]
[394141408,1763319040741,-150.0,0.00032987,60]
[394141409,1763319040750,-166.36857467,0.00033,120]
[394141410,1763319040759,-150.0,0.00033042,60]
[394141411,1763319040769,-500.0,0.00033042,2]
[394141412,1763319040778,-150.0,0.00033042,60]
[394141413,1763319040788,-228.58575698,0.00033051,15]
[394141414,1763319040797,-34945.3083811,0.00033051,3]
[394141415,1763319040806,-151.0,0.00033061,31]
[394141416,1763319040816,-151.0,0.00033061,31]
[394141417,1763319040826,-151.0,0.00033061,31]
[394141418,1763319040835,-156.089534,0.00033061,31]
[394141419,1763319040845,-151.0,0.00033061,31]
[394141420,1763319040854,-151.0,0.00033061,31]
[394141421,1763319040863,-151.811139,0.00033061,31]
[394141422,1763319040873,-151.0,0.00033061,31]
[394141423,1763319040882,-151.0,0.00033061,31]
[394141424,1763319040892,-151.0,0.00033061,31]
[394141425,1763319040902,-151.0,0.00033061,31]
[394141426,1763319040912,-151.0,0.00033061,30]
[394141427,1763319040922,-151.0,0.00033061,31]
[394141428,1763319040932,-151.0,0.00033061,31]
[394141429,1763319040941,-151.0,0.00033061,31]
[394141430,1763319040951,-151.0,0.00033061,31]
[394141431,1763319040961,-151.0,0.00033061,31]
[394141432,1763319040972,-151.0,0.00033061,31]
[394141433,1763319040981,-180.093633,0.00033061,31]
[394141434,1763319040994,-508.655404,0.00033061,31]
[394141435,1763319041004,-151.0,0.00033061,31]
[394141436,1763319041013,-508.655404,0.00033061,31]
[394141437,1763319041023,-508.655404,0.00033061,31]
[394141438,1763319041032,-508.655404,0.00033061,31]
[394141439,1763319041041,-151.0,0.00033061,31]
[394141440,1763319041050,-151.0,0.00033061,31]
[394141441,1763319041060,-151.0,0.00033061,31]
[394141442,1763319041070,-174.433953,0.00033061,31]
[394141443,1763319041080,-151.0,0.00033061,31]
[394141444,1763319041090,-174.433953,0.00033061,31]
[394141445,1763319041100,-174.433953,0.00033061,31]
[394141446,1763319041110,-151.0,0.00033061,31]
[394141447,1763319041119,-151.0,0.00033061,31]
[394141448,1763319041129,-174.433953,0.00033061,31]
[394141449,1763319041141,-151.0,0.00033061,31]
[394141450,1763319041150,-151.0,0.00033061,31]
[394141451,1763319041160,-151.0,0.00033061,31]
[394141452,1763319041170,-151.0,0.00033061,31]
[394141453,1763319041179,-151.0,0.00033061,31]
[394141454,1763319041189,-151.0,0.00033061,31]
[394141455,1763319041198,-151.0,0.00033061,31]
[394141456,1763319041208,-188.279895,0.00033061,31]
[394141457,1763319041217,-188.279895,0.00033061,31]
[394141458,1763319041229,-151.0,0.00033061,31]
[394141459,1763319041243,-188.279895,0.00033061,31]
[394141460,1763319041252,-151.0,0.00033061,31]
[394141461,1763319041262,-188.279895,0.00033061,31]
[394141462,1763319041271,-221.822642,0.00033061,31]
[394141463,1763319041281,-151.0,0.00033061,31]
[394141464,1763319041290,-284.797267,0.00033061,31]
[394141465,1763319041299,-151.0,0.00033061,31]
[394141466,1763319041312,-151.0,0.00033061,31]
[394141467,1763319041321,-151.0,0.00033061,31]
[394141468,1763319041330,-151.0,0.00033061,31]
[394141469,1763319041340,-152.069191,0.00033061,5]
[394141470,1763319041349,-184.808736,0.00033061,31]
[394141471,1763319041358,-151.0,0.00033061,31]
[394141472,1763319041368,-151.0,0.00033061,31]
[394141473,1763319041377,-151.0,0.00033061,31]
[394141474,1763319041386,-151.0,0.00033061,31]
[394141475,1763319041395,-151.0,0.00033061,31]
[394141476,1763319041404,-151.0,0.00033061,31]
[394141477,1763319041413,-151.0,0.00033061,31]
[394141478,1763319041423,-151.0,0.00033061,31]
[394141479,1763319041432,-151.0,0.00033061,31]
[394141480,1763319041441,-151.0,0.00033061,31]
[394141481,1763319041451,-151.0,0.00033061,31]
[394141482,1763319041461,-151.0,0.00033061,31]
[394141483,1763319041473,-969.5,0.00033093,30]
[394141484,1763319041483,-150.0,0.00033097,60]
[394141485,1763319041492,-500.0,0.00033097,2]
[394141486,1763319041502,-150.0,0.00033097,60]
[394141487,1763319041511,-14996.93274094,0.00033138,2]
[394141488,1763319041521,-488.0,0.0003315,7]
[394141489,1763319041531,-165.93802187,0.00033151,60]
[394141490,1763319041541,-289.7874335,0.00033151,2]
[394141491,1763319041550,-150.0,0.00033151,60]
[394141492,1763319041561,-150.0,0.00033206,60]
[394141493,1763319041570,-150.0,0.00033244,5]
[394141494,1763319041580,-168.0,0.0003325,2]
[394141495,1763319041589,-237.0,0.00033261,60]
[394141496,1763319041599,-168.0,0.00033441,2]
[394141497,1763319041608,-150.0,0.00033506,15]
[394141498,1763319041619,-232.18,0.00033542,2]
[394141499,1763319041629,-718.93025998,0.00033828,2]
[394141500,1763319041638,-700.23,0.00033863,2]
[394141501,1763319041648,-700.23,0.00033863,2]
[394141502,1763319041658,-700.23,0.00033863,2]
[394141503,1763319041667,-700.23,0.00033863,2]
[394141504,1763319041678,-700.23,0.00033863,2]
[394141505,1763319041688,-700.23,0.00033863,2]
[394141506,1763319041698,-700.23,0.00033863,2]
[394141507,1763319041708,-700.23,0.00033863,2]
[394141508,1763319041718,-166.36857467,0.000339,120]
[394141509,1763319041733,-150.0,0.00033938,60]
[394141510,1763319041743,-168.0,0.00033956,2]
[394141511,1763319041755,-150.0,0.00033971,8]
[394141512,1763319041765,-488.0,0.00033972,8]
[394141513,1763319041776,-150.0,0.00033972,7]
[394141514,1763319041786,-1000.0,0.00033973,7]
[394141515,1763319041797,-768.01885,0.00034,10]
[394141516,1763319041807,-790.47241054,0.00034,7]
[394141517,1763319041818,-2000.0,0.000341,2]
[394141518,1763319041830,-1000.0,0.00034107,2]
[394141519,1763319041840,-608.0,0.00034136,2]
[394141520,1763319041851,-1318.0,0.00034136,2]
[394141521,1763319041861,-575.0,0.00034136,2]
[394141522,1763319041871,-3430.0,0.00034136,2]
[394141523,1763319041881,-1599.0,0.00034136,2]
[394141524,1763319041891,-821.0,0.00034136,2]
[394141525,1763319041901,-793.0,0.00034136,2]
[394141526,1763319041911,-1275.0,0.00034136,2]
[394141527,1763319041920,-6488.0,0.00034136,2]
[394141528,1763319041929,-150.0,0.00034137,2]
[394141529,1763319041939,-271.96,0.00034137,2]
[394141530,1763319041948,-301.7,0.00034137,2]
[394141531,1763319041957,-150.0,0.00034137,2]
[394141532,1763319041967,-223.48,0.00034137,2]
[394141533,1763319041981,-776.33,0.000342,30]
[394141534,1763319041991,-1000.0,0.00034247,7]
[394141535,1763319042001,-151.0,0.00034268,31]
[394141536,1763319042011,-151.0,0.00034268,31]
[394141537,1763319042020,-151.0,0.00034268,31]
[394141538,1763319042029,-176.684608,0.00034268,31]
[394141539,1763319042039,-151.0,0.00034268,31]
[394141540,1763319042049,-159.242683,0.00034268,31]
[394141541,1763319042059,-151.0,0.00034268,31]
[394141542,1763319042069,-151.0,0.00034268,31]
[394141543,1763319042079,-151.0,0.00034268,31]
[394141544,1763319042088,-270.577465,0.00034268,31]
[394141545,1763319042098,-151.0,0.00034268,31]
[394141546,1763319042107,-510.053752,0.00034268,28]
[394141547,1763319042116,-510.053752,0.00034268,28]
[394141548,1763319042125,-510.053752,0.00034268,28]
[394141549,1763319042134,-510.053752,0.00034268,28]
[394141550,1763319042144,-151.0,0.00034268,31]
[394141551,1763319042154,-151.0,0.00034268,31]
[394141552,1763319042167,-151.0,0.00034268,31]
[394141553,1763319042176,-151.0,0.00034268,31]
[394141554,1763319042185,-151.0,0.00034268,31]
[394141555,1763319042194,-151.0,0.00034268,31]
[394141556,1763319042203,-151.0,0.00034268,31]
[394141557,1763319042212,-151.0,0.00034268,31]
[394141558,1763319042225,-151.0,0.00034268,31]
[394141559,1763319042236,-300.0,0.00034308,2]
[394141560,1763319042246,-300.0,0.00034325,2]
[394141561,1763319042256,-300.0,0.00034328,2]
[394141562,1763319042267,-300.0,0.00034331,2]
[394141563,1763319042276,-300.0,0.00034349,2]
[394141564,1763319042286,-744.46144285,0.00034353,2]
[394141565,1763319042297,-300.0,0.00034356,2]
[394141566,1763319042309,-300.0,0.00034365,2]
[394141567,1763319042319,-300.0,0.00034366,2]
[394141568,1763319042329,-300.0,0.00034371,2]
[394141569,1763319042339,-300.0,0.00034373,2]
[394141570,1763319042348,-168.0,0.00034379,2]
[394141571,1763319042358,-1000.0,0.00034384,2]
[394141572,1763319042367,-300.0,0.00034388,2]
[394141573,1763319042377,-150.0,0.00034389,6]
[394141574,1763319042387,-300.0,0.00034389,2]
[394141575,1763319042397,-300.0,0.00034414,2]
[394141576,1763319042407,-300.0,0.00034417,2]
[394141577,1763319042416,-300.0,0.00034418,2]
[394141578,1763319042425,-168.0,0.00034423,2]
[394141579,1763319042435,-168.0,0.00034428,2]
[394141580,1763319042445,-300.0,0.00034437,2]
[394141581,1763319042456,-300.0,0.0003444,2]
[394141582,1763319042465,-300.0,0.00034441,2]
[394141583,1763319042479,-300.0,0.00034443,2]
[394141584,1763319042489,-300.0,0.0003445,2]